fUST/lending_fUST_20250725
["ID","MTS","AMOUNT","RATE_DAILY","PERIOD"]
[374708627,1753421443362,-288.33,0.00018406,2]
[374708628,1753421443372,-5103.4863748,0.0002,2]
[374708741,1753421446377,-21825.92120687,0.0002,2]
[374708742,1753421446392,-1282.07079313,0.0002,2]
[374708756,1753421497641,1676.59183411,0.00016369,2]
[374708757,1753421497665,8323.40816589,0.00016369,2]
[374708758,1753421514832,460.0,0.00016874,2]
[374708763,1753421597369,460.0,0.00016864,2]
[374708764,1753421611999,386.76076664,0.00016864,2]
[374708765,1753421616057,255.0,0.00016947,2]
[374708766,1753421661152,114.83106747,0.00016864,2]
[374708767,1753421661176,345.16893253,0.00016864,2]
[374708768,1753421698595,458540.0,0.00026,120]
[374708769,1753421708891,1067.509322,0.00016242,2]
[374708770,1753421776582,198.91373637,0.00016723,2]
[374708771,1753421786203,258.83778443,0.00016974,2]
[374708772,1753421788074,275.62751488,0.00016974,2]
[374708773,1753421840752,460.0,0.00016864,2]
[374708774,1753421877628,460.0,0.00016864,2]
[374708775,1753421940410,460.0,0.00016864,2]
[374708782,1753422079572,6473.94270979,0.00016139,2]
[374708783,1753422079599,10000.0,0.00016139,2]
[374708784,1753422079625,8426.05729021,0.00016139,2]
[374708788,1753422313648,596.47238,0.00013699,2]
[374708789,1753422355942,-406.55145704,0.00017035,2]
[374708822,1753422632652,-300.0,0.00017131,2]
[374708824,1753422632663,-300.0,0.00017131,2]
[374708826,1753422632672,-300.0,0.00017131,2]
[374708828,1753422632682,-300.0,0.00017131,2]
[374708830,1753422632692,-1200.0,0.00017131,2]
[374708831,1753422632707,-184.12432195,0.00017132,2]
[374708832,1753422632717,-460.0,0.00017132,2]
[374708834,1753422632726,-463.22036578,0.00017132,2]
[374708836,1753422632736,-460.0,0.00017132,2]
[374708838,1753422632746,-460.0,0.00017132,2]
[374708840,1753422632755,-460.0,0.00017132,2]
[374708842,1753422632765,-460.0,0.00017132,2]
[374708844,1753422632775,-460.0,0.00017132,2]
[374708846,1753422632785,-460.0,0.00017132,2]
[374708849,1753422632795,-50000.0,0.00017133,2]
[374708851,1753422632804,-1200.0,0.00017133,2]
[374708853,1753422632814,-460.0,0.00017133,2]
[374708855,1753422632824,-261.36912487,0.00017133,2]
[374708857,1753422632834,-412.65097454,0.00017133,2]
[374708859,1753422632844,-576.2305104,0.00017133,2]
[374708861,1753422632853,-460.0,0.00017133,2]
[374708864,1753422632863,-460.0,0.00017135,2]
[374708866,1753422632873,-460.0,0.00017135,2]
[374708868,1753422632883,-299.15788632,0.00017135,2]
[374708870,1753422632891,-460.0,0.00017135,2]
[374708872,1753422632901,-305.32174483,0.00017135,2]
[374708874,1753422632911,-460.0,0.00017135,2]
[374708876,1753422632920,-460.0,0.00017135,2]
[374708879,1753422632930,-461.31632317,0.00017135,2]
[374708881,1753422632939,-460.0,0.00017135,2]
[374708883,1753422632951,-460.0,0.00017135,2]
[374708885,1753422632961,-638.39,0.00017135,2]
[374708887,1753422632970,-460.0,0.00017135,2]
[374708889,1753422632980,-460.0,0.00017135,2]
[374708891,1753422632990,-460.0,0.00017135,2]
[374708893,1753422633000,-460.0,0.00017135,2]
[374708895,1753422633010,-460.0,0.00017135,2]
[374708897,1753422633019,-460.0,0.00017135,2]
[374708899,1753422633028,-460.0,0.00017135,2]
[374708901,1753422633037,-460.0,0.00017135,2]
[374708903,1753422633047,-460.0,0.00017135,2]
[374708905,1753422633057,-460.0,0.00017135,2]
[374708907,1753422633067,-460.0,0.00017135,2]
[374708909,1753422633077,-460.0,0.00017135,2]
[374708911,1753422633087,-460.0,0.00017135,2]
[374708913,1753422633097,-460.0,0.00017135,2]
[374708915,1753422633107,-460.0,0.00017135,2]
[374708917,1753422633117,-460.0,0.00017135,2]
[374708919,1753422633127,-460.0,0.00017135,2]
[374708921,1753422633137,-461.64596371,0.00017135,2]
[374708923,1753422633147,-460.0,0.00017135,2]
[374708924,1753422633156,-237.68595691,0.00017135,2]
[374708927,1753422633166,-376.180692,0.00017135,2]
[374708928,1753422633176,-460.0,0.00017135,2]
[374708931,1753422633186,-504.21056494,0.00017135,2]
[374708932,1753422633195,-460.0,0.00017135,2]
[374708934,1753422633205,-460.0,0.00017135,2]
[374708936,1753422633215,-460.0,0.00017135,2]
[374708939,1753422633225,-460.0,0.00017136,2]
[374708940,1753422633235,-463.11902597,0.00017136,2]
[374708942,1753422633245,-460.0,0.00017136,2]
[374708944,1753422633254,-460.0,0.00017138,2]
[374708947,1753422633264,-460.0,0.00017139,2]
[374708948,1753422633274,-460.0,0.00017139,2]
[374708950,1753422633283,-460.0,0.00017139,2]
[374708952,1753422633293,-460.0,0.00017139,2]
[374708955,1753422633303,-460.0,0.00017139,2]
[374708958,1753422633313,-460.0,0.00017139,2]
[374708961,1753422633322,-460.0,0.00017139,2]
[374708964,1753422633332,-460.0,0.00017139,2]
[374708967,1753422633342,-465.22339676,0.00017139,2]
[374708969,1753422633352,-474.3271977,0.00017139,2]
[374708970,1753422633362,-460.0,0.00017139,2]
[374708971,1753422633371,-589.16690425,0.00017139,2]
[374708972,1753422633381,-460.0,0.00017139,2]
[374708973,1753422633391,-169.36,0.00017139,2]
[374708974,1753422633401,-460.0,0.00017139,2]
[374708975,1753422633411,-487.05578112,0.00017139,2]
[374708976,1753422633421,-310.55483868,0.00017139,2]
[374708977,1753422633430,-460.0,0.00017139,2]
[374708978,1753422633440,-221.94648605,0.00017139,2]
[374708979,1753422633450,-460.0,0.00017139,2]
[374708980,1753422633459,-460.0,0.00017139,2]
[374708981,1753422633469,-460.0,0.00017139,2]
[374708982,1753422633479,-460.0,0.00017139,2]
[374708983,1753422633489,-460.0,0.00017139,2]
[374708984,1753422633498,-500.0,0.00017139,2]
[374708985,1753422633507,-213.23312887,0.0001721,2]
[374708986,1753422633516,-460.0,0.00017239,2]
[374708987,1753422633526,-460.0,0.00017239,2]
[374708988,1753422633535,-586.39817391,0.00017241,2]
[374708989,1753422633545,-596.34909493,0.00017241,2]
[374708990,1753422633554,-460.0,0.00017241,2]
[374708991,1753422633563,-460.0,0.00017241,2]
[374708992,1753422633573,-460.0,0.00017241,2]
[374708993,1753422633583,-460.0,0.00017241,2]
[374708994,1753422633593,-1009.12,0.00017241,2]
[374708995,1753422633603,-460.0,0.00017241,2]
[374708996,1753422633613,-460.0,0.00017241,2]
[374708997,1753422633623,-460.0,0.00017241,2]
[374708998,1753422633632,-460.0,0.00017241,2]
[374708999,1753422633642,-460.0,0.00017247,2]
[374709000,1753422633653,-460.0,0.00017248,2]
[374709001,1753422633662,-460.0,0.00017248,2]
[374709002,1753422633672,-460.0,0.00017248,2]
[374709003,1753422633681,-460.0,0.00017248,2]
[374709004,1753422633691,-460.0,0.00017248,2]
[374709005,1753422633705,-460.0,0.00017248,2]
[374709006,1753422633715,-460.0,0.00017248,2]
[374709007,1753422633725,-460.0,0.00017248,2]
[374709008,1753422633734,-462.18493317,0.00017248,2]
[374709009,1753422633745,-460.0,0.00017248,2]
[374709010,1753422633754,-460.0,0.00017248,2]
[374709011,1753422633764,-461.82714262,0.0001725,2]
[374709012,1753422633774,-460.0,0.0001725,2]
[374709013,1753422633792,-460.0,0.0001725,2]
[374709014,1753422633809,-460.0,0.0001725,2]
[374709015,1753422633820,-215.14403475,0.00017406,2]
[374709016,1753422633829,-460.0,0.00017406,2]
[374709017,1753422633839,-460.0,0.00017407,2]
[374709018,1753422633849,-461.65937099,0.00017407,2]
[374709019,1753422633859,-460.0,0.00017407,2]
[374709020,1753422633879,-460.0,0.00017407,2]
[374709021,1753422633891,-463.808894,0.00017407,2]
[374709022,1753422633903,-460.0,0.00017407,2]
[374709023,1753422633913,-460.0,0.00017407,2]
[374709024,1753422633923,-460.0,0.00017407,2]
[374709025,1753422633932,-460.0,0.00017407,2]
[374709026,1753422633942,-460.0,0.00017407,2]
[374709027,1753422633952,-460.0,0.00017407,2]
[374709028,1753422633962,-460.0,0.00017407,2]
[374709029,1753422633972,-460.0,0.00017407,2]
[374709030,1753422633982,-460.0,0.00017407,2]
[374709031,1753422633992,-602.89250735,0.00017407,2]
[374709032,1753422634002,-460.0,0.00017407,2]
[374709033,1753422634013,-353.73641951,0.00017407,2]
[374709034,1753422634023,-460.0,0.00017407,2]
[374709035,1753422634033,-460.0,0.00017407,2]
[374709036,1753422634043,-460.0,0.00017409,2]
[374709037,1753422634053,-638.39,0.00017409,2]
[374709038,1753422634062,-273.37751053,0.00017409,2]
[374709039,1753422634072,-460.0,0.00017409,2]
[374709040,1753422634082,-460.0,0.00017409,2]
[374709041,1753422634091,-460.0,0.00017409,2]
[374709042,1753422634101,-460.0,0.00017409,2]
[374709043,1753422634111,-460.0,0.00017409,2]
[374709044,1753422634120,-512.92,0.00017409,2]
[374709045,1753422634130,-513.42699304,0.0001741,2]
[374709046,1753422634139,-460.0,0.0001741,2]
[374709047,1753422634151,-460.0,0.0001741,2]
[374709048,1753422634161,-460.0,0.00017412,2]
[374709049,1753422634170,-460.0,0.00017413,2]
[374709050,1753422634180,-460.0,0.00017413,2]
[374709051,1753422634189,-460.0,0.00017413,2]
[374709052,1753422634198,-494.86,0.00017413,2]
[374709053,1753422634208,-500.0,0.00017413,2]
[374709054,1753422634217,-370.9975937,0.00017473,2]
[374709055,1753422634227,-7597.26987242,0.00017485,2]
[374709056,1753422634337,-265.41518492,0.00017485,2]
[374709057,1753422634379,-255.57243791,0.00017485,2]
[374709058,1753422634391,-52574.40165992,0.00017485,2]
[374709059,1753422634403,-14506.50344575,0.00017485,2]
[374709060,1753422634413,-460.0,0.00017515,2]
[374709061,1753422634422,-460.0,0.00017515,2]
[374709062,1753422634431,-460.0,0.00017515,2]
[374709063,1753422634440,-1009.12,0.00017515,2]
[374709064,1753422634449,-460.0,0.00017515,2]
[374709065,1753422634459,-460.0,0.00017515,2]
[374709066,1753422634468,-460.0,0.00017515,2]
[374709067,1753422634478,-460.0,0.00017515,2]
[374709068,1753422634487,-460.0,0.00017521,2]
[374709069,1753422634495,-460.0,0.00017522,2]
[374709070,1753422634504,-460.0,0.0001768,2]
[374709071,1753422634514,-460.0,0.00017681,2]
[374709072,1753422634523,-460.0,0.00017681,2]
[374709073,1753422634533,-460.0,0.00017681,2]
[374709074,1753422634542,-460.0,0.00017681,2]
[374709075,1753422634551,-460.0,0.00017681,2]
[374709076,1753422634560,-460.0,0.00017683,2]
[374709077,1753422634570,-638.39,0.00017683,2]
[374709078,1753422634580,-460.0,0.00017683,2]
[374709079,1753422634589,-460.0,0.00017683,2]
[374709080,1753422634598,-460.0,0.00017683,2]
[374709081,1753422634607,-460.0,0.00017683,2]
[374709082,1753422634616,-460.0,0.00017683,2]
[374709083,1753422634626,-534.66,0.00017684,2]
[374709084,1753422634635,-460.0,0.00017684,2]
[374709085,1753422634644,-319.40059412,0.00017686,2]
[374709086,1753422634655,-460.0,0.00017687,2]
[374709087,1753422634664,-460.0,0.00017687,2]
[374709088,1753422634674,-499.23557783,0.00017687,2]
[374709089,1753422634683,-158.52,0.00017789,2]
[374709090,1753422634695,-460.0,0.00017789,2]
[374709091,1753422634708,-460.0,0.00017789,2]
[374709092,1753422634717,-1009.12,0.00017789,2]
[374709093,1753422634727,-460.0,0.00017789,2]
[374709094,1753422634737,-460.0,0.00017789,2]
[374709095,1753422634747,-460.0,0.00017789,2]
[374709096,1753422634757,-460.0,0.00017789,2]
[374709097,1753422634768,-460.0,0.00017795,2]
[374709098,1753422634783,-460.0,0.00017796,2]
[374709099,1753422634794,-460.0,0.00017954,2]
[374709100,1753422634804,-460.0,0.00017955,2]
[374709101,1753422634814,-460.0,0.00017955,2]
[374709102,1753422634825,-460.0,0.00017955,2]
[374709103,1753422634834,-460.0,0.00017955,2]
[374709104,1753422634844,-460.0,0.00017957,2]
[374709105,1753422634853,-638.39,0.00017957,2]
[374709106,1753422634863,-460.0,0.00017957,2]
[374709107,1753422634873,-25.67527776,0.00017957,2]
[374709108,1753422634889,-434.32472224,0.00017957,2]
[374709109,1753422634898,-460.0,0.00017957,2]
[374709110,1753422634909,-460.0,0.00017957,2]
[374709111,1753422634919,-460.0,0.00017958,2]
[374709112,1753422634929,-482.82008555,0.00018063,2]
[374709144,1753422638527,-544.70246555,0.00017033,2]
[374709146,1753422638538,-193.2431822,0.00017131,2]
[374709147,1753422638548,-366.82060993,0.00017131,2]
[374709149,1753422638559,-407.11964367,0.00017131,2]
[374709151,1753422638569,-500.0,0.00017131,2]
[374709152,1753422638579,-500.0,0.00017131,2]
[374709153,1753422638588,-500.0,0.00017131,2]
[374709154,1753422638598,-500.0,0.00017131,2]
[374709155,1753422638608,-500.0,0.00017131,2]
[374709156,1753422638618,-500.0,0.00017131,2]
[374709157,1753422638627,-517.19840758,0.00017131,2]
[374709158,1753422638637,-500.0,0.00017131,2]
[374709160,1753422638648,-500.0,0.00017131,2]
[374709161,1753422638659,-500.0,0.00017131,2]
[374709162,1753422638668,-500.0,0.00017131,2]
[374709163,1753422638678,-500.0,0.00017131,2]
[374709164,1753422638687,-500.0,0.00017131,2]
[374709165,1753422638700,-500.0,0.00017131,2]
[374709166,1753422638711,-500.0,0.00017131,2]
[374709167,1753422638721,-500.0,0.00017131,2]
[374709169,1753422638731,-500.0,0.00017131,2]
[374709170,1753422638741,-500.0,0.00017131,2]
[374709171,1753422638751,-500.0,0.00017131,2]
[374709172,1753422638761,-500.0,0.00017131,2]
[374709173,1753422638771,-500.0,0.00017131,2]
[374709174,1753422638783,-500.0,0.00017131,2]
[374709175,1753422638793,-500.0,0.00017131,2]
[374709176,1753422638802,-500.0,0.00017131,2]
[374709177,1753422638813,-160.24767329,0.00017131,2]
[374709178,1753422638823,-460.0,0.00017135,2]
[374709179,1753422638832,-47.41991445,0.00018063,2]
[374709180,1753422638842,-1009.12,0.00018063,2]
[374709181,1753422638852,-460.0,0.00018063,2]
[374709182,1753422638862,-460.0,0.00018063,2]
[374709183,1753422638872,-460.0,0.00018063,2]
[374709184,1753422638883,-460.0,0.00018063,2]
[374709185,1753422638893,-460.0,0.00018069,2]
[374709186,1753422638908,-460.0,0.0001807,2]
[374709187,1753422638923,-460.0,0.00018228,2]
[374709188,1753422638932,-460.0,0.00018229,2]
[374709189,1753422638942,-484.2,0.00018229,2]
[374709190,1753422638952,-460.0,0.00018229,2]
[374709191,1753422638962,-460.0,0.00018229,2]
[374709192,1753422638972,-460.0,0.00018231,2]
[374709193,1753422638982,-638.39,0.00018231,2]
[374709194,1753422638992,-460.0,0.00018231,2]
[374709195,1753422639002,-460.0,0.00018231,2]
[374709196,1753422639011,-460.0,0.00018231,2]
[374709197,1753422639021,-460.0,0.00018231,2]
[374709198,1753422639031,-1009.12,0.00018337,2]
[374709199,1753422639040,-460.0,0.00018337,2]
[374709200,1753422639050,-460.0,0.00018337,2]
[374709201,1753422639060,-460.0,0.00018337,2]
[374709202,1753422639070,-460.0,0.00018337,2]
[374709203,1753422639080,-460.0,0.00018343,2]
[374709204,1753422639090,-460.0,0.00018344,2]
[374709205,1753422639100,-460.0,0.00018502,2]
[374709206,1753422639110,-460.0,0.00018503,2]
[374709207,1753422639119,-242.16,0.00018503,2]
[374709208,1753422639129,-460.0,0.00018505,2]
[374709209,1753422639139,-638.39,0.00018505,2]
[374709210,1753422639149,-460.0,0.00018505,2]
[374709211,1753422639161,-321.25,0.00018505,2]
[374709212,1753422639170,-460.0,0.00018505,2]
[374709213,1753422639180,-460.0,0.00018505,2]
[374709214,1753422639190,-160.0,0.000186,2]
[374709215,1753422639199,-1009.12,0.00018611,2]
[374709216,1753422639208,-460.0,0.00018611,2]
[374709217,1753422639218,-460.0,0.00018611,2]
[374709218,1753422639228,-173.26,0.00018611,2]
[374709219,1753422639237,-460.0,0.00018611,2]
[374709220,1753422639247,-460.0,0.00018617,2]
[374709221,1753422639256,-460.0,0.00018618,2]
[374709222,1753422639266,-287.0,0.00018708,2]
[374709223,1753422639276,-420.0,0.00018708,2]
[374709224,1753422639286,-387.0,0.00018708,2]
[374709225,1753422639296,-420.0,0.00018708,2]
[374709226,1753422639306,-1680.0,0.0001871,2]
[374709227,1753422639315,-460.0,0.00018776,2]
[374709228,1753422639325,-251.0128477,0.00018777,2]
[374709229,1753422639335,-460.0,0.00018779,2]
[374709230,1753422639344,-638.39,0.00018779,2]
[374709231,1753422639354,-460.0,0.00018779,2]
[374709232,1753422639364,-460.0,0.00018779,2]
[374709233,1753422639373,-295.23,0.00018779,2]
[374709234,1753422639384,-1680.0,0.00018801,2]
[374709235,1753422639393,-1009.12,0.00018885,2]
[374709236,1753422639404,-460.0,0.00018885,2]
[374709237,1753422639414,-460.0,0.00018885,2]
[374709238,1753422639423,-460.0,0.00018885,2]
[374709239,1753422639433,-460.0,0.00018891,2]
[374709240,1753422639444,-291.1,0.00018892,2]
[374709241,1753422639454,-3625.94495266,0.000189,2]
[374709242,1753422639463,-800.0,0.00018963,2]
[374709243,1753422639472,-691.96737253,0.00019,2]
[374709244,1753422639482,-460.0,0.0001905,2]
[374709245,1753422639491,-460.0,0.00019053,2]
[374709246,1753422639501,-638.39,0.00019053,2]
[374709247,1753422639511,-460.0,0.00019053,2]
[374709248,1753422639520,-460.0,0.00019053,2]
[374709249,1753422639530,-214.7599002,0.00019121,2]
[374709250,1753422639540,-160.0,0.00019121,2]
[374709251,1753422639550,-526.33361954,0.00019121,2]
[374709252,1753422639559,-215.93003454,0.00019121,2]
[374709253,1753422639568,-12627.2413641,0.00019121,2]
[374709254,1753422639577,-840.4016166,0.00019121,2]
[374709255,1753422639586,-3625.94495253,0.00019141,2]
[374709256,1753422639596,-260.0,0.00019148,2]
[374709257,1753422639606,-1009.12,0.00019159,2]
[374709258,1753422639615,-460.0,0.00019159,2]
[374709259,1753422639625,-460.0,0.00019159,2]
[374709260,1753422639637,-460.0,0.00019159,2]
[374709261,1753422639646,-460.0,0.00019165,2]
[374709262,1753422639659,-245.552113,0.00019178,2]
[374709263,1753422639669,-666.0,0.00019178,2]
[374709264,1753422639679,-460.0,0.00019324,2]
[374709265,1753422639688,-2311.82467267,0.00019327,2]
[374709266,1753422639703,-460.0,0.00019327,2]
[374709267,1753422639714,-638.39,0.00019327,2]
[374709268,1753422639725,-601.3349975,0.00019327,2]
[374709269,1753422639735,-460.0,0.00019327,2]
[374709270,1753422639748,-5201.6055135,0.00019327,2]
[374709271,1753422639759,-3625.94495253,0.00019383,2]
[374709272,1753422639770,-1009.12,0.00019433,2]
[374709273,1753422639780,-460.0,0.00019433,2]
[374709274,1753422639791,-460.0,0.00019433,2]
[374709275,1753422639802,-460.0,0.00019433,2]
[374709276,1753422639811,-460.0,0.00019439,2]
[374709277,1753422639820,-235.38478724,0.00019507,3]
[374709278,1753422639830,-3348.90936169,0.00019556,2]
[374709279,1753422639840,-460.0,0.00019598,2]
[374709280,1753422639849,-460.0,0.00019601,2]
[374709281,1753422639859,-638.39,0.00019601,2]
[374709282,1753422639872,-460.0,0.00019601,2]
[374709283,1753422639882,-1091.83839654,0.00019607,2]
[374709284,1753422639892,-3625.94495253,0.00019624,2]
[374709285,1753422639902,-360.0,0.00019696,2]
[374709286,1753422639912,-1009.12,0.00019707,2]
[374709287,1753422639922,-460.0,0.00019707,2]
[374709288,1753422639932,-213.76,0.00019707,2]
[374709289,1753422639942,-460.0,0.00019707,2]
[374709290,1753422639951,-460.0,0.00019713,2]
[374709291,1753422639963,-3625.94495253,0.00019866,2]
[374709292,1753422639974,-186.16,0.00019872,2]
[374709293,1753422639985,-460.0,0.00019875,2]
[374709294,1753422639996,-638.39,0.00019875,2]
[374709295,1753422640006,-460.0,0.00019875,2]
[374709296,1753422640016,-1009.12,0.00019981,2]
[374709297,1753422640031,-460.0,0.00019981,2]
[374709298,1753422640042,-373.15262003,0.00019981,2]
[374709300,1753422640052,-460.0,0.00019987,2]
[374709301,1753422640061,-502.66,0.00019999,2]
[374709302,1753422640070,-460.0,0.00019999,2]
[374709303,1753422640080,-460.0,0.00019999,2]
[374709304,1753422640089,-460.0,0.00019999,2]
[374709305,1753422640099,-20549.33368775,0.0002,2]
[374709306,1753422640109,-530.54,0.00020049,2]
[374709308,1753422640119,-800.0,0.00020059,2]
[374709310,1753422640129,-340.4,0.000201,2]
[374709311,1753422640139,-3625.94495253,0.00020107,2]
[374709312,1753422640148,-460.0,0.00020149,2]
[374709313,1753422640159,-638.39,0.00020149,2]
[374709314,1753422640168,-239.97948252,0.00020149,2]
[374709315,1753422640178,-1561.67978408,0.00020173,2]
[374709316,1753422640188,-596.47238,0.00020187,2]
[374709317,1753422640198,-9238.05139197,0.00020195,2]
[374709318,1753422640208,-623.84133564,0.00020211,2]
[374709319,1753422640217,-500.0,0.00020213,2]
[374709320,1753422640226,-460.0,0.00020244,2]
[374709323,1753422640236,-1009.12,0.00020255,2]
[374709325,1753422640245,-460.0,0.00020255,2]
[374709326,1753422640255,-365.0,0.00020261,2]
[374709329,1753422640265,-502.66,0.00020273,2]
[374709330,1753422640274,-460.0,0.00020273,2]
[374709332,1753422640284,-460.0,0.00020273,2]
[374709334,1753422640294,-460.0,0.00020273,2]
[374709336,1753422640303,-405.0,0.00020308,3]
[374709338,1753422640313,-3625.94495253,0.00020348,3]
[374709339,1753422640322,-151.0,0.000204,4]
[374709340,1753422640332,-460.0,0.00020423,2]
[374709341,1753422640341,-638.39,0.00020423,2]
[374709342,1753422640351,-587.0,0.00020431,2]
[374709343,1753422640360,-671.0,0.00020433,2]
[374709344,1753422640370,-9301.73776194,0.000205,2]
[374709345,1753422640379,-1009.12,0.00020529,2]
[374709346,1753422640388,-460.0,0.00020529,2]
[374709347,1753422640399,-500.0,0.00020547,2]
[374709348,1753422640409,-500.0,0.00020547,2]
[374709349,1753422640418,-500.0,0.00020547,2]
[374709350,1753422640427,-500.0,0.00020547,2]
[374709351,1753422640437,-500.0,0.00020547,2]
[374709352,1753422640446,-500.0,0.00020547,2]
[374709354,1753422640456,-500.0,0.00020547,2]
[374709356,1753422640465,-576.26,0.00020547,2]
[374709358,1753422640475,-502.66,0.00020547,2]
[374709360,1753422640485,-460.0,0.00020547,2]
[374709362,1753422640495,-460.0,0.00020547,2]
[374709364,1753422640504,-460.0,0.00020547,2]
[374709366,1753422640514,-3625.94495253,0.0002059,3]
[374709368,1753422640524,-2351.0,0.00020634,2]
[374709370,1753422640533,-214.7599002,0.0002066,3]
[374709372,1753422640543,-160.0,0.0002066,3]
[374709374,1753422640552,-12627.2413641,0.0002066,3]
[374709376,1753422640562,-460.0,0.00020697,2]
[374709378,1753422640572,-638.39,0.00020697,2]
[374709380,1753422640581,-500.0,0.0002076,2]
[374709382,1753422640591,-560.0,0.00020792,2]
[374709384,1753422640601,-1009.12,0.00020803,2]
[374709386,1753422640611,-460.0,0.00020803,2]
[374709388,1753422640621,-502.66,0.00020821,2]
[374709390,1753422640631,-460.0,0.00020821,2]
[374709392,1753422640641,-460.0,0.00020821,2]
[374709394,1753422640650,-3625.94495253,0.00020831,4]
[374709396,1753422640661,-405.0,0.00020833,4]
[374709398,1753422640671,-151.0,0.000209,4]
[374709400,1753422640680,-460.0,0.00020971,2]
[374709402,1753422640689,-638.39,0.00020971,2]
[374709405,1753422640703,-163.0,0.00021,4]
[374709406,1753422640712,-1061.09,0.00021004,2]
[374709408,1753422640722,-3625.94495253,0.00021072,4]
[374709411,1753422640731,-1009.12,0.00021077,2]
[374709412,1753422640741,-460.0,0.00021077,2]
[374709414,1753422640750,-502.66,0.00021095,2]
[374709416,1753422640760,-460.0,0.00021095,2]
[374709418,1753422640769,-460.0,0.00021095,2]
[374709420,1753422640779,-800.0,0.00021155,2]
[374709422,1753422640795,-250.0,0.00021244,2]
[374709424,1753422640814,-460.0,0.00021245,2]
[374709426,1753422640823,-638.39,0.00021245,2]
[374709428,1753422640832,-1561.67978405,0.00021267,2]
[374709430,1753422640842,-1189.566,0.00021293,2]
[374709432,1753422640851,-3625.94495253,0.00021314,5]
[374709434,1753422640861,-178.674,0.00021322,2]
[374709437,1753422640871,-660.0,0.0002134,2]
[374709439,1753422640881,-1009.12,0.00021351,2]
[374709441,1753422640890,-434.27901257,0.00021351,2]
[374709443,1753422640900,-405.0,0.00021359,4]
[374709444,1753422640911,-502.66,0.00021369,2]
[374709445,1753422640920,-176.8170709,0.00021369,2]
[374709446,1753422640930,-460.0,0.00021369,2]
[374709447,1753422640939,-154.341417,0.00021492,2]
[374709448,1753422640948,-2219.31768029,0.000215,2]
[374709449,1753422640958,-151.0,0.000215,3]
[374709450,1753422640966,-460.0,0.00021519,2]
[374709452,1753422640976,-638.39,0.00021519,2]
[374709454,1753422640985,-3625.94495253,0.00021555,5]
[374709456,1753422640994,-1009.12,0.00021625,2]
[374709458,1753422641004,-5000.0,0.00021635,2]
[374709460,1753422641013,-502.66,0.00021643,2]
[374709462,1753422641022,-460.0,0.00021643,2]
[374709464,1753422641032,-164.0,0.00021699,5]
[374709466,1753422641042,-914.65176247,0.00021739,2]
[374709468,1753422641051,-2424.13842595,0.0002179,2]
[374709469,1753422641061,-460.0,0.00021793,2]
[374709470,1753422641071,-638.39,0.00021793,2]
[374709471,1753422641080,-3625.94495253,0.00021797,6]
[374709472,1753422641090,-405.0,0.00021884,4]
[374709473,1753422641099,-760.0,0.00021888,2]
[374709474,1753422641109,-1009.12,0.00021899,2]
[374709475,1753422641118,-500.0,0.00021917,2]